[Event "Presidents Day NY GM A 2025"]
[Site "New York"]
[Date "2025.02.18"]
[Round "9.4"]
[White "Nagy, Gabor"]
[Black "Putnam, Liam"]
[Result "1/2-1/2"]
[Annotator "RC"]
[ECO "E03"]
[WhiteElo "2472"]
[BlackElo "2402"]
[PlyCount "119"]
[EventDate "2025.02.12"]
[EventType "tourn"]
[EventCountry "USA"]
[SourceTitle "playchess.com"]
[Source "ChessBase"]
[SourceQuality "1"]
[TimeControl "5400+30"]

1. d4 {[%emt 0:01:15]} Nf6 {[%emt 0:00:37]} 2. c4 {[%emt 0:00:24]} e6 {[%emt 0:00:28]} 3. Nf3 {[%emt 0:00:17]} d5 {[%emt 0:00:12]} 4. g3 {[%emt 0:00:18]} dxc4 {[%emt 0:01:07]} 5. Qa4+ {[%emt 0:00:57]} Nbd7 {[%emt 0:00:59]} 6. Bg2 {[%emt 0:00:34]} a6 {[%emt 0:06:54]} 7. Qxc4 {[%emt 0:00:27]} b5 {[%emt 0:00:53]} 8. Qc6 {[%emt 0:01:14]} Rb8 {[%emt 0:01:37]} 9. O-O {[%emt 0:02:45]} Bb7 {[%emt 0:00:45]} 10. Qc2 {[%emt 0:00:10]} c5 {[%emt 0:01:20]} 11. dxc5 {[%emt 0:05:10]} Bxc5 {[%emt 0:00:43]} 12. Nc3 {[%emt 0:00:26]} O-O {[%emt 0:01:19]} 13. a3 {[%emt 0:01:01]} Qe7 {[%emt 0:04:26]} 14. Bg5 {[%emt 0:02:39]} Rfc8 {[%emt 0:05:47]} 15. Rad1 {[%emt 0:02:36]} h6 {[%emt 0:00:52]} 16. Bxf6 {[%emt 0:03:09]} Nxf6 {[%emt 0:00:03]} 17. Ne5 {[%emt 0:08:31]} Bxg2 {[%emt 0:04:12]} 18. Kxg2 {[%emt 0:00:11]} Bd6 {[%emt 0:00:37]} 19. Nf3 {[%emt 0:01:05]} Bxa3 {[%emt 0:00:57]} 20. bxa3 {[%emt 0:00:29]} Qxa3 {[%emt 0:00:07]} 21. Rd3 {[%emt 0:02:26]} b4 {[%emt 0:00:33]} 22. Rb1 {[%emt 0:00:18]} bxc3 {[%emt 0:01:45]} 23. Rxb8 {[%emt 0:00:12]} Rxb8 {[%emt 0:00:03]} 24. Rxc3 {[%emt 0:00:09]} Qf8 {[%emt 0:01:14]} 25. Ne5 {[%emt 0:00:26]} Nd5 {[%emt 0:13:34]} 26. Rf3 {[%emt 0:03:20]} Rb7 {[%emt 0:03:34]} 27. Qc6 {[%emt 0:03:09]} Ra7 {[%emt 0:01:06]} 28. Rb3 {[%emt 0:02:47]} Qa8 {[%emt 0:03:21]} 29. e4 {[%emt 0:00:55]} Nf6 {[%emt 0:00:26]} 30. f3 {[%emt 0:00:43]} a5 {[%emt 0:05:04]} 31. Qd6 {[%emt 0:01:22]} Rb7 {[%emt 0:00:23]} 32. Rxb7 {[%emt 0:00:41]} Qxb7 {[%emt 0:00:03]} 33. Qd8+ {[%emt 0:00:06]} Kh7 {[%emt 0:00:03]} 34. Qxa5 {[%emt 0:00:09]} Qb2+ {[%emt 0:01:48]} 35. Kg1 {[%emt 0:00:37]} Qb1+ {[%emt 0:00:38]} 36. Kg2 {[%emt 0:00:35]} Qc2+ {[%emt 0:00:08]} 37. Kg1 {[%emt 0:00:21]} Qd1+ {[%emt 0:00:07]} 38. Kg2 {[%emt 0:00:16]} Qe2+ {[%emt 0:01:12]} 39. Kg1 {[%emt 0:00:15]} Nd5 {[%emt 0:00:19]} 40. exd5 {[%emt 0:04:17]} Qxe5 {[%emt 0:00:06]} 41. Qa7 {[%emt 0:01:06]} exd5 {[%emt 0:02:14]} 42. Qxf7 {[%emt 0:00:17]} d4 {[%emt 0:00:05]} 43. Qd7 {[%emt 0:04:11]} Qe1+ {[%emt 0:03:39]} 44. Kg2 {[%emt 0:00:14]} Qe2+ {[%emt 0:00:02]} 45. Kh3 {[%emt 0:00:19]} d3 {[%emt 0:00:36]} 46. Qf5+ {[%emt 0:00:21]} Kg8 {[%emt 0:00:03]} 47. Qc8+ {[%emt 0:01:08]} Kf7 {[%emt 0:00:02]} 48. Qd7+ {[%emt 0:00:45]} Kf6 {[%emt 0:00:17]} 49. Qd4+ {[%emt 0:00:11]} Ke7 {[%emt 0:17:25]} 50. Qc5+ {[%emt 0:03:22]} Kd7 {[%emt 0:03:40]} 51. Qd5+ {[%emt 0:00:25]} Ke8 {[%emt 0:00:11]} 52. Qc6+ {[%emt 0:00:24]} Ke7 {[%emt 0:03:09]} 53. Qc5+ {[%emt 0:00:17]} Ke6 {[%emt 0:01:03]} 54. Qc4+ {[%emt 0:00:45]} Kd7 {[%emt 0:04:43]} 55. Qd5+ {[%emt 0:00:27]} Ke8 {[%emt 0:00:18]} 56. Qc6+ {[%emt 0:00:08]} Kf7 {[%emt 0:03:33]} 57. Qd7+ {[%emt 0:00:22]} Kf6 {[%emt 0:00:20]} 58. Qd4+ {[%emt 0:00:08]} Kf5 {[%emt 0:00:19]} 59. Qf4+ {[%emt 0:00:11]} Kg6 {[%emt 0:00:23]} 60. Qg4+ {[%emt 0:00:06]} 1/2-1/2

[Event "Presidents Day NY GM A 2025"]
[Site "New York"]
[Date "2025.02.17"]
[Round "9.5"]
[White "Stearman, Josiah"]
[Black "Paragua, Mark"]
[Result "1/2-1/2"]
[Annotator "RC"]
[ECO "B90"]
[WhiteElo "2439"]
[BlackElo "2446"]
[PlyCount "31"]
[EventDate "2025.02.12"]
[EventType "tourn"]
[EventCountry "USA"]
[SourceTitle "playchess.com"]
[Source "ChessBase"]
[SourceQuality "1"]
[TimeControl "5400+30"]

1. e4 {[%emt 1:31:00]} c5 {[%emt 0:00:12]} 2. Nf3 {[%emt 0:00:00]} d6 {[%emt 0:00:05]} 3. d4 {[%emt 0:00:00]} cxd4 {[%emt 0:00:05]} 4. Nxd4 {[%emt 0:00:00]} Nf6 {[%emt 0:00:07]} 5. Nc3 {[%emt 0:00:00]} a6 {[%emt 0:00:06]} 6. h3 {[%emt 0:00:00]} e5 {[%emt 0:00:07]} 7. Nf3 {[%emt 0:00:00]} h6 {[%emt 0:00:18]} 8. g4 {[%emt 0:00:00]} b5 {[%emt 0:00:27]} 9. g5 {[%emt 0:00:00]} hxg5 {[%emt 0:00:22]} 10. Nxg5 {[%emt 0:00:00]} Bb7 {[%emt 0:02:17]} 11. Qf3 {[%emt 0:00:00]} Nc6 {[%emt 0:03:20]} 12. Be3 {[%emt 0:00:00]} Qc7 {[%emt 0:04:40]} 13. O-O-O {[%emt 0:00:00]} Rc8 {[%emt 0:01:50]} 14. Rd2 {[%emt 0:00:00]} Qa5 {[%emt 0:09:06]} 15. Kb1 {[%emt 0:00:00]} Nb4 {[%emt 0:10:59]} 16. a3 {[%emt 0:00:00]} 1/2-1/2